bitfinex/quotes_BTCUSD_20251114
["timestamp","ask_amount","ask_price","bid_price","bid_amount"]
[1763098950585,0.20521195,97461.0,97452.0,0.00013713]
[1763098951109,0.20521462,97459.0,97452.0,0.00013713]
[1763098951483,0.20521195,97461.0,97452.0,0.00013713]
[1763098951673,0.323,97472.0,97452.0,0.00013713]
[1763098951871,0.20520793,97463.0,97452.0,0.00013713]
[1763098952093,0.51885445,97462.0,97452.0,0.00013713]
[1763098952297,0.01885445,97461.0,97452.0,0.00013713]
[1763098952506,0.144396,97470.0,97454.0,0.1006426]
[1763098952706,0.20520607,97463.0,97462.0,0.06377]
[1763098952904,0.20519786,97467.0,97462.0,0.06377]
[1763098953064,0.20520267,97465.0,97463.0,0.04742]
[1763098953268,0.20519786,97467.0,97463.0,0.04742]
[1763098953469,0.20518292,97474.0,97463.0,0.04742]
[1763098953688,0.20519414,97469.0,97463.0,0.04742]
[1763098953919,0.20519344,97469.0,97463.0,0.04742]
[1763098954096,0.20519738,97468.0,97463.0,0.04742]
[1763098954423,0.20519738,97468.0,97463.0,0.04842]
[1763098954753,0.20519745,97468.0,97463.0,0.04742]
[1763098954914,0.20519344,97469.0,97463.0,0.04742]
[1763098955096,0.20519344,97469.0,97463.0,0.04842]
[1763098955310,0.20519733,97468.0,97463.0,0.04942]
[1763098955527,0.01025851,97480.0,97463.0,0.04942]
[1763098955528,0.211787,97476.0,97463.0,0.04942]
[1763098955695,0.20520394,97465.0,97463.0,0.04942]
[1763098955940,0.20519755,97468.0,97463.0,0.04942]
[1763098956144,0.01891864,97467.0,97463.0,0.04842]
[1763098956498,0.323,97479.0,97463.0,0.04842]
[1763098956703,0.323,97477.0,97463.0,0.04942]
[1763098956840,0.2335565,97476.0,97463.0,0.04942]
[1763098957048,0.2052023,97465.0,97463.0,0.04842]
[1763098957246,0.01891853,97464.0,97463.0,0.002]
[1763098957629,0.02838948,97464.0,97463.0,0.001]
[1763098958062,0.20520607,97463.0,97461.0,0.04742]
[1763098958264,0.02838948,97462.0,97461.0,0.04742]
[1763098958683,0.20521871,97457.0,97456.0,0.1457]
[1763098958902,0.20522713,97453.0,97450.0,0.1457]
[1763098959178,0.2241994,97453.0,97450.0,0.1457]
[1763098959796,0.01897227,97453.0,97450.0,0.1457]
[1763098960156,0.02846677,97453.0,97450.0,0.1457]
[1763098961220,0.02846677,97453.0,97452.0,0.00113713]
[1763098961588,0.01897227,97453.0,97452.0,0.00113713]
[1763098961777,0.01899141,97453.0,97452.0,0.00313713]
[1763098962000,0.02187458,97469.0,97461.0,0.06377]
[1763098962203,0.20520778,97463.0,97454.0,0.1006426]
[1763098962382,0.20521496,97459.0,97454.0,0.1006426]
[1763098962591,0.20520188,97465.0,97454.0,0.1006426]
[1763098962592,0.02849172,97458.0,97454.0,0.1006426]
[1763098962791,0.02849172,97457.0,97454.0,0.1006426]
[1763098962994,0.02849172,97456.0,97455.0,0.09496]
[1763098964588,0.02849172,97456.0,97455.0,0.09596]
[1763098964787,0.02849172,97456.0,97455.0,0.09796]
[1763098965982,0.75069053,97456.0,97455.0,0.003]
[1763098966156,0.77260306,97456.0,97455.0,0.003]
[1763098966562,0.77260306,97456.0,97455.0,0.002]
[1763098966864,0.77260306,97456.0,97455.0,0.003]
[1763098967063,0.77260306,97456.0,97455.0,0.001]
[1763098967465,2.52822713,97453.0,97452.0,0.00013713]
[1763098967618,2.57912138,97453.0,97452.0,0.00013713]
[1763098968254,2.60648656,97453.0,97452.0,0.00013713]
[1763098968656,2.57912138,97453.0,97452.0,0.00013713]
[1763098969128,0.20528822,97424.0,97423.0,0.04742]
[1763098969344,0.20528822,97424.0,97423.0,0.04755716]
[1763098969808,0.23379165,97424.0,97423.0,0.04755716]
[1763098970558,0.23379165,97424.0,97423.0,0.04855716]
[1763098970963,0.23379165,97424.0,97423.0,0.05055716]
[1763098971342,0.20528822,97424.0,97423.0,0.05055716]
[1763098971616,0.02849863,97424.0,97423.0,0.05055716]
[1763098972836,0.23378685,97424.0,97423.0,0.05055716]
[1763098973289,0.02849863,97424.0,97423.0,0.05055716]
[1763098975128,0.07092104,97442.0,97423.0,0.05055716]
[1763098975129,0.02736104,97444.0,97423.0,0.05055716]
[1763098975327,0.23375836,97443.0,97441.0,0.04742]
[1763098975527,0.05040886,97442.0,97441.0,0.04742]
[1763098976013,0.2052524,97441.0,97433.0,0.09496]
[1763098976187,0.20524819,97443.0,97433.0,0.09496]
[1763098976188,0.02851017,97440.0,97435.0,0.04742]
[1763098976367,0.02851017,97439.0,97435.0,0.04742]
[1763098976564,0.02851017,97438.0,97435.0,0.04742]
[1763098976792,0.02851017,97437.0,97435.0,0.04742]
[1763098976965,0.02851017,97436.0,97435.0,0.04742]
[1763098977363,0.20524828,97443.0,97435.0,0.04742]
[1763098977563,0.02851719,97442.0,97435.0,0.04742]
[1763098977786,0.02851719,97441.0,97435.0,0.04942]
[1763098977987,0.02851719,97440.0,97435.0,0.04942]
[1763098978191,0.02851719,97439.0,97436.0,0.1006426]
[1763098978393,0.20524015,97447.0,97444.0,0.06377]
[1763098978596,0.2052457,97445.0,97444.0,0.06377]
[1763098978799,0.2052503,97442.0,97441.0,0.001]
[1763098978974,0.23377808,97442.0,97436.0,0.09496]
[1763098979182,0.02852778,97441.0,97437.0,0.1006426]
[1763098979375,0.20524636,97444.0,97437.0,0.1006426]
[1763098979677,0.20522223,97456.0,97446.0,0.06377]
[1763098979883,0.20524607,97445.0,97438.0,0.09496]
[1763098980087,0.14569,97454.0,97438.0,0.09496]
[1763098980299,0.136586,97452.0,97438.0,0.09496]
[1763098980507,0.20522427,97455.0,97438.0,0.09496]
[1763098980765,0.02852731,97454.0,97439.0,0.20525662]
[1763098981018,0.02191217,97462.0,97459.0,0.10826]
[1763098981219,0.02191217,97474.0,97469.0,0.06186]
[1763098981443,0.00951122,97473.0,97469.0,0.06186]
[1763098981690,0.66150317,97479.0,97478.0,0.0464]
[1763098981873,0.55044565,97479.0,97478.0,0.0464]
[1763098982092,0.05044565,97479.0,97478.0,0.0464]
[1763098982297,0.71468355,97479.0,97478.0,0.0464]
[1763098982496,0.20516418,97483.0,97478.0,0.0464]
[1763098982680,0.20516218,97484.0,97478.0,0.0464]
[1763098982888,0.20517097,97480.0,97478.0,0.0464]
[1763098983583,0.20516473,97483.0,97478.0,0.0464]
[1763098983784,0.20515801,97486.0,97478.0,0.0464]
[1763098983985,0.20516248,97484.0,97478.0,0.0474]
[1763098984214,0.323,97488.0,97478.0,0.0464]
[1763098984347,0.323,97488.0,97487.0,0.06186]
[1763098984553,0.52813451,97497.0,97496.0,0.0464]
[1763098984755,0.57855082,97497.0,97496.0,0.0464]
[1763098984959,0.57855082,97497.0,97482.0,0.0916]
[1763098984960,0.323,97494.0,97482.0,0.0916]
[1763098985184,0.20514452,97493.0,97492.0,0.0464]
[1763098985389,0.20514157,97494.0,97492.0,0.0464]
[1763098985564,0.03979,97504.0,97492.0,0.0464]
[1763098985765,0.20513564,97497.0,97493.0,0.0916]
[1763098986338,0.20513226,97499.0,97493.0,0.0916]
[1763098986482,0.323,97509.0,97493.0,0.0916]
[1763098986820,0.20512635,97501.0,97493.0,0.0916]
[1763098986986,0.00013706,97501.0,97493.0,0.0916]
[1763098987181,0.00013706,97501.0,97499.0,0.1006426]
[1763098987382,0.00013706,97501.0,97500.0,0.09108]
[1763098989199,0.00013706,97501.0,97500.0,0.13449874]
[1763098989513,0.00013706,97501.0,97500.0,0.04541874]
[1763098989728,0.00013706,97501.0,97500.0,0.04441874]
[1763098989922,0.00013706,97501.0,97500.0,0.04341874]
[1763098990062,0.00013706,97501.0,97500.0,0.04541874]
[1763098990264,0.00013706,97501.0,97500.0,0.04441874]
[1763098990811,0.00013706,97501.0,97500.0,0.003]
[1763098991429,0.00013706,97501.0,97500.0,0.002]
[1763098991622,0.20526316,97501.0,97500.0,0.002]
[1763098991839,0.20526316,97501.0,97500.0,0.003]
[1763098992214,0.20526316,97501.0,97500.0,0.002]
[1763098992430,0.323,97500.0,97468.0,0.0479]
[1763098992607,0.246336,97489.0,97470.0,0.1006426]
[1763098992811,0.20515856,97486.0,97470.0,0.1006426]
[1763098993187,0.2051621,97484.0,97471.0,0.09108]
[1763098993360,0.20516663,97482.0,97471.0,0.09108]
[1763098993578,0.2051621,97484.0,97483.0,0.06232]
[1763098993773,0.20515582,97487.0,97483.0,0.06232]
[1763098993974,0.20518141,97475.0,97471.0,0.09108]
[1763098994150,0.20515582,97487.0,97471.0,0.09108]
[1763098994151,0.20517677,97477.0,97471.0,0.09108]
[1763098994352,0.20518097,97475.0,97471.0,0.09108]
[1763098994554,0.20518097,97475.0,97470.0,0.1006426]
[1763098994740,0.01887,97480.0,97468.0,0.001]
[1763098994741,0.20519344,97469.0,97468.0,0.001]
[1763098994938,0.01887,97480.0,97468.0,0.001]
[1763098995256,0.30630029,97480.0,97479.0,0.0479]
[1763098995456,0.20517029,97480.0,97479.0,0.11022]
[1763098996059,0.01025746,97490.0,97479.0,0.11022]
[1763098996060,0.134823,97489.0,97479.0,0.11022]
[1763098996279,0.20515861,97486.0,97479.0,0.11022]
[1763098996678,0.20515861,97486.0,97479.0,0.11122]
[1763098997120,0.20515861,97486.0,97479.0,0.11022]
[1763098997274,0.20516842,97481.0,97479.0,0.11122]
[1763098997476,0.20516397,97483.0,97479.0,0.11122]
[1763098997680,0.20516844,97481.0,97479.0,0.11122]
[1763098997880,0.20516844,97481.0,97479.0,0.0499]
[1763098998271,0.20516844,97481.0,97479.0,0.0489]
[1763098998474,0.20516844,97481.0,97479.0,0.0479]
[1763098998662,0.20516844,97481.0,97479.0,0.0489]
[1763098998870,0.20516844,97481.0,97479.0,0.0499]
[1763098999092,0.20516867,97481.0,97479.0,0.0479]
[1763098999365,0.20516311,97484.0,97479.0,0.0499]
[1763099000287,0.20516311,97484.0,97479.0,0.0489]
[1763099000484,0.01025746,97490.0,97479.0,0.0489]
[1763099000485,0.20517029,97480.0,97479.0,0.0489]
[1763099000684,0.20517029,97480.0,97479.0,0.001]
[1763099000886,0.20517029,97480.0,97479.0,0.002]
[1763099001306,0.20517029,97480.0,97479.0,0.001]
[1763099002087,0.20517029,97480.0,97479.0,0.002]
[1763099002257,0.01025535,97510.0,97488.0,0.06232]
[1763099002560,0.35383124,97490.0,97489.0,0.06232]
[1763099002758,0.20513796,97496.0,97480.0,0.09108]
[1763099002909,0.64594664,97510.0,97489.0,0.0479]
[1763099002910,0.20514924,97490.0,97489.0,0.0479]
[1763099003755,0.20514924,97490.0,97489.0,0.0489]
[1763099003961,0.20514622,97492.0,97489.0,0.0489]
[1763099004161,0.02731318,97517.0,97489.0,0.0489]
[1763099004162,0.323,97497.0,97489.0,0.0489]
[1763099004357,0.20513915,97495.0,97489.0,0.0489]
[1763099004679,0.20513915,97495.0,97489.0,0.0499]
[1763099004884,0.20514907,97491.0,97489.0,0.0499]
[1763099005231,0.20514907,97491.0,97489.0,0.0489]
[1763099005436,0.20514907,97491.0,97489.0,0.0479]
[1763099005923,0.20514907,97491.0,97489.0,0.0489]
[1763099006094,0.20514907,97491.0,97489.0,0.0479]
[1763099006299,0.323,97507.0,97489.0,0.0479]
[1763099006506,0.20514429,97493.0,97489.0,0.0489]
[1763099006648,0.20514765,97491.0,97489.0,0.0489]
[1763099007030,0.2051433,97493.0,97489.0,0.0499]
[1763099007362,0.20513835,97496.0,97489.0,0.0499]
[1763099007570,0.20514181,97494.0,97489.0,0.0499]
[1763099008012,0.20514181,97494.0,97489.0,0.0479]
[1763099008413,0.2051476,97491.0,97489.0,0.0489]
[1763099008974,0.2051476,97491.0,97489.0,0.0499]
[1763099009191,0.2051476,97491.0,97489.0,0.0489]
[1763099009611,0.2051476,97491.0,97489.0,0.0499]
[1763099009793,0.2051476,97491.0,97489.0,0.0479]
[1763099009992,0.2051476,97491.0,97489.0,0.0489]
[1763099010337,0.200645,97490.0,97489.0,0.001]
[1763099010506,0.323,97487.0,97460.0,0.09084]
[1763099010718,0.323,97487.0,97439.0,0.04514]
[1763099010719,0.20521239,97460.0,97454.0,0.09084]
[1763099010916,0.20520637,97463.0,97454.0,0.09084]
[1763099011287,0.20521239,97460.0,97448.0,0.09084]
[1763099011693,0.323,97466.0,97460.0,0.001]
[1763099011883,0.20521021,97462.0,97460.0,0.00113716]
[1763099012086,0.20521021,97462.0,97460.0,0.00013716]
[1763099012892,0.20520186,97465.0,97460.0,0.00013716]
[1763099013135,0.20520627,97463.0,97460.0,0.00013716]
[1763099013328,0.20520627,97463.0,97460.0,0.00113716]
[1763099014014,0.323,97470.0,97469.0,0.06047]
[1763099014433,0.20521028,97461.0,97460.0,0.00113716]
[1763099014641,0.20519344,97469.0,97462.0,0.04514]
[1763099014820,0.20519827,97467.0,97462.0,0.04514]
[1763099015001,0.20520231,97465.0,97462.0,0.04514]
[1763099015198,0.20520607,97463.0,97462.0,0.04514]
[1763099015610,0.20520231,97465.0,97462.0,0.04514]
[1763099016004,0.20520231,97465.0,97462.0,0.04614]
[1763099016210,0.20520231,97465.0,97462.0,0.04514]
[1763099016433,0.20519827,97467.0,97462.0,0.04514]
[1763099016658,0.20519109,97471.0,97462.0,0.04614]
[1763099016960,0.02731318,97486.0,97471.0,0.06047]
[1763099017179,0.01378,97488.0,97479.0,0.04514]
[1763099017385,0.14159351,97480.0,97479.0,0.04514]
[1763099017625,0.51025851,97480.0,97479.0,0.04514]
[1763099018233,0.01025851,97480.0,97479.0,0.04514]
[1763099019319,0.5,97480.0,97479.0,0.04514]
[1763099019542,0.20515135,97489.0,97488.0,0.06047]
[1763099019734,0.20520582,97464.0,97462.0,0.04514]
[1763099020125,0.20520818,97462.0,97460.0,0.00013716]
[1763099022169,0.02189626,97461.0,97460.0,0.00013716]
[1763099023008,0.20521028,97461.0,97460.0,0.00013716]
[1763099024526,0.02737914,97475.0,97469.0,0.06047]
[1763099024803,0.20518778,97472.0,97470.0,0.06047]
[1763099025037,0.20520818,97462.0,97460.0,0.00013716]
[1763099026540,0.20520818,97462.0,97460.0,0.00113716]
[1763099027075,0.02737914,97477.0,97460.0,0.00113716]
[1763099027274,0.2052045,97464.0,97460.0,0.00113716]
[1763099027480,0.20521028,97461.0,97460.0,0.00113716]
[1763099028209,0.20521028,97461.0,97460.0,0.00013716]
[1763099028596,0.20521028,97461.0,97460.0,0.00113716]
[1763099033150,0.20581028,97461.0,97460.0,0.00113716]
[1763099033311,0.62322128,97461.0,97460.0,0.00113716]
[1763099034347,0.62322128,97461.0,97460.0,0.00013716]
[1763099035181,0.94622128,97461.0,97460.0,0.00013716]
[1763099035586,0.96810438,97461.0,97460.0,0.00013716]
[1763099035770,0.99659727,97461.0,97460.0,0.00013716]
[1763099035982,0.96599727,97461.0,97460.0,0.00013716]
[1763099036188,1.02679727,97461.0,97460.0,0.00013716]
[1763099041063,1.06331859,97461.0,97460.0,0.00013716]
[1763099041261,1.02681307,97461.0,97460.0,0.00013716]
[1763099041659,1.06332952,97461.0,97460.0,0.00013716]
[1763099042496,1.02682249,97461.0,97460.0,0.00013716]
[1763099043332,1.07024123,97461.0,97460.0,0.00013716]
[1763099045529,1.07024123,97461.0,97410.0,0.0004]
[1763099045530,0.20531562,97411.0,97410.0,0.0004]
[1763099045737,0.20531562,97411.0,97410.0,0.00085755]
[1763099046250,0.20530951,97414.0,97410.0,0.00085755]
[1763099046433,0.20530951,97414.0,97411.0,0.04364]
[1763099046639,0.20531345,97413.0,97411.0,0.04364]
[1763099047499,0.20531562,97411.0,97410.0,0.00285755]
[1763099048254,0.20597562,97411.0,97410.0,0.00085755]
[1763099048453,0.98223062,97411.0,97410.0,0.00085755]
[1763099048640,0.41903962,97411.0,97410.0,0.00085755]
[1763099048836,0.41837962,97411.0,97410.0,0.00085755]
[1763099049041,0.37897262,97411.0,97410.0,0.00085755]
[1763099049261,0.20531562,97411.0,97410.0,0.00085755]
[1763099049463,0.20531562,97411.0,97410.0,0.00185755]
[1763099049692,0.35034248,97428.0,97411.0,0.12495]
[1763099049894,0.52846211,97424.0,97412.0,0.1006426]
[1763099050089,0.20528897,97424.0,97412.0,0.1827426]
[1763099050351,0.20528073,97428.0,97423.0,0.05834]
[1763099050571,0.75951008,97440.0,97431.0,0.04285]
[1763099050572,0.20526666,97435.0,97431.0,0.04285]
[1763099050783,0.01026272,97440.0,97432.0,0.05834]
[1763099050988,0.23371939,97439.0,97432.0,0.05834]
[1763099051192,0.21551926,97440.0,97432.0,0.05834]
[1763099051366,0.323,97439.0,97432.0,0.14044]
[1763099051588,0.02734248,97454.0,97441.0,0.05834]
[1763099051785,0.46197255,97460.0,97443.0,0.05834]
[1763099051786,0.02185759,97458.0,97443.0,0.05834]
[1763099051917,0.20522898,97453.0,97444.0,0.0821]
[1763099052342,0.20523726,97449.0,97444.0,0.0821]
[1763099052542,0.20522898,97453.0,97452.0,0.05834]
[1763099052756,0.20527463,97453.0,97452.0,0.05834]
[1763099053160,0.20524922,97443.0,97441.0,0.04285]
[1763099053361,4.565e-05,97453.0,97442.0,0.1006426]
[1763099053596,0.20524012,97447.0,97444.0,0.001]
[1763099054332,0.2052412,97449.0,97444.0,0.001]
[1763099054538,0.20524035,97447.0,97444.0,0.001]
[1763099054757,0.20523374,97450.0,97445.0,0.0821]
[1763099055199,0.2052379,97448.0,97445.0,0.0821]
[1763099055945,0.2052379,97448.0,97445.0,0.0831]
[1763099056360,0.20523913,97450.0,97445.0,0.0821]
[1763099056585,0.20523514,97450.0,97445.0,0.0821]
[1763099056845,0.20523514,97450.0,97445.0,0.0831]
[1763099057044,0.20523762,97449.0,97445.0,0.0851]
[1763099057246,4.565e-05,97453.0,97445.0,0.0831]
[1763099057616,4.565e-05,97453.0,97445.0,0.0841]
[1763099057816,4.565e-05,97453.0,97445.0,0.0821]
[1763099058133,4.565e-05,97453.0,97445.0,0.0841]
[1763099058338,4.565e-05,97453.0,97446.0,0.1006426]
[1763099058538,0.20522924,97452.0,97446.0,0.1006426]
[1763099058741,0.20522924,97452.0,97447.0,0.0821]
[1763099058935,0.20524187,97446.0,97445.0,0.002]
[1763099059339,0.20524187,97446.0,97445.0,0.001]
[1763099059687,0.2052503,97442.0,97441.0,0.04285]
[1763099060398,0.20527136,97432.0,97423.0,0.0821]
[1763099061802,0.20527136,97432.0,97420.0,0.4152553]
[1763099062055,0.20527136,97432.0,97431.0,0.04385]
[1763099062632,0.20527136,97432.0,97431.0,0.04585]
[1763099063056,0.20527136,97432.0,97431.0,0.003]
[1763099063575,0.2052617,97437.0,97431.0,0.003]
[1763099063779,0.503251,97444.0,97431.0,0.001]
[1763099063982,0.323,97444.0,97431.0,0.0831]
[1763099064178,0.2052687,97434.0,97431.0,0.0831]
[1763099064899,0.2052687,97434.0,97431.0,0.0821]
[1763099065098,0.20525151,97442.0,97440.0,0.05834]
[1763099065317,0.20524236,97446.0,97433.0,0.1006426]
[1763099065535,0.20524236,97446.0,97441.0,0.10119]
[1763099065740,0.20524236,97446.0,97445.0,0.05834]
[1763099066337,0.20523532,97450.0,97445.0,0.05834]
[1763099066712,0.20523177,97451.0,97445.0,0.05834]
[1763099067067,0.20523177,97451.0,97445.0,0.05934]
[1763099067291,0.20523177,97451.0,97445.0,0.05834]
[1763099067491,0.20523177,97451.0,97445.0,0.05934]
[1763099067796,0.20527473,97453.0,97445.0,0.0831]
[1763099067934,0.20523107,97452.0,97445.0,0.0831]
[1763099068358,0.20523107,97452.0,97445.0,0.0841]
[1763099068722,0.20523107,97452.0,97445.0,0.0821]
[1763099069098,0.20527306,97453.0,97445.0,0.0831]
[1763099069300,0.20527306,97453.0,97445.0,0.0821]
[1763099069642,0.20527306,97453.0,97445.0,0.0831]
[1763099069870,0.20527306,97453.0,97445.0,0.0821]
[1763099070246,0.20523119,97452.0,97445.0,0.0831]
[1763099071362,0.20524045,97447.0,97445.0,0.001]
[1763099071804,0.20525009,97443.0,97441.0,0.04285]
[1763099072222,0.20523933,97448.0,97442.0,0.08027]
[1763099072422,0.20524187,97446.0,97442.0,0.08027]
[1763099072629,0.20525019,97443.0,97441.0,0.04285]
[1763099073198,0.20525019,97443.0,97441.0,0.04385]
[1763099074400,0.20525019,97443.0,97441.0,0.001]
[1763099074598,0.0035,97442.0,97441.0,0.001]
[1763099074865,0.0035,97442.0,97441.0,0.002]
[1763099075013,0.3265,97442.0,97441.0,0.002]
[1763099075213,1.528624,97442.0,97441.0,0.002]
[1763099075418,1.528624,97442.0,97425.0,0.04285]
[1763099075635,0.20528401,97426.0,97425.0,0.04285]
[1763099076668,0.2052815,97428.0,97425.0,0.04285]
[1763099076877,0.20528401,97426.0,97425.0,0.04285]
[1763099077094,0.20528401,97426.0,97425.0,0.04485]
[1763099077788,0.20528401,97426.0,97425.0,0.04585]
[1763099078017,0.20527202,97432.0,97426.0,0.08027]
[1763099078370,0.20527563,97430.0,97426.0,0.08027]
[1763099078574,0.20527202,97432.0,97426.0,0.08027]
[1763099078773,0.20525963,97438.0,97435.0,0.05692]
[1763099078980,0.20525686,97439.0,97437.0,0.04171]
[1763099079355,0.20527631,97430.0,97427.0,0.1006426]
[1763099079757,0.20527952,97429.0,97427.0,0.1006426]
[1763099079957,0.20527952,97429.0,97428.0,0.1457]
[1763099082060,0.0106,97436.0,97428.0,0.1467]
[1763099082061,0.20526379,97436.0,97428.0,0.1467]
[1763099082213,0.20526011,97438.0,97429.0,0.08027]
[1763099082415,0.20526504,97436.0,97429.0,0.08027]
[1763099082657,0.20526695,97435.0,97429.0,0.08027]
[1763099082884,0.20527544,97431.0,97429.0,0.08027]
[1763099083429,0.20527768,97429.0,97428.0,0.1467]
[1763099083628,0.20527768,97429.0,97428.0,0.001]
[1763099083841,0.82233768,97429.0,97428.0,0.001]
[1763099084043,0.20531351,97412.0,97411.0,0.04285]
[1763099084854,0.20531351,97412.0,97410.0,0.0004]
[1763099085102,0.03704,97411.0,97410.0,0.0004]
[1763099085667,0.20535913,97412.0,97410.0,0.0004]
[1763099086308,0.20535913,97412.0,97410.0,0.0014]
[1763099086613,0.0035,97411.0,97410.0,0.0004]
[1763099086804,0.20535913,97412.0,97410.0,0.0014]
[1763099087093,0.0035,97411.0,97410.0,0.0014]
[1763099087213,0.0035,97411.0,97410.0,0.0004]
[1763099087834,0.0035,97411.0,97410.0,0.0014]
[1763099088025,0.0035,97411.0,97410.0,0.0004]
[1763099088433,0.0035,97411.0,97410.0,0.0014]
[1763099088831,0.3265,97411.0,97410.0,0.0014]
[1763099089071,1.104903,97411.0,97410.0,0.0014]
[1763099089388,1.104903,97411.0,97410.0,0.0004]
[1763099089587,1.104903,97411.0,97410.0,0.0014]
[1763099090144,1.12678867,97411.0,97410.0,0.0014]
[1763099090373,1.104903,97411.0,97410.0,0.0014]
[1763099090957,1.12677822,97411.0,97410.0,0.0014]
[1763099092247,1.101403,97411.0,97410.0,0.0014]
[1763099092454,0.6395,97411.0,97410.0,0.0014]
[1763099092658,0.69431,97411.0,97410.0,0.0014]
[1763099092868,0.19431,97411.0,97410.0,0.0014]
[1763099093073,0.51731,97411.0,97410.0,0.0014]
[1763099093880,0.51731,97411.0,97410.0,0.0004]
[1763099094303,0.51731,97411.0,97410.0,0.0014]
[1763099094566,0.51731,97411.0,97410.0,0.0004]
[1763099094777,0.51731,97411.0,97410.0,0.0014]
[1763099095229,0.4625,97411.0,97410.0,0.0014]
[1763099095448,0.1395,97411.0,97410.0,0.0014]
[1763099095664,0.34481562,97411.0,97410.0,0.0014]
[1763099095871,0.32536062,97411.0,97410.0,0.0014]
[1763099096083,0.38017062,97411.0,97410.0,0.0014]
[1763099096730,0.70317062,97411.0,97410.0,0.0024]
[1763099096936,0.70317062,97411.0,97410.0,0.0014]
[1763099097140,0.70317062,97411.0,97410.0,0.0004]
[1763099097351,0.70317062,97411.0,97410.0,0.0014]
[1763099097582,0.70317062,97411.0,97410.0,0.0004]
[1763099097986,0.70317062,97411.0,97410.0,0.0014]
[1763099098428,0.72500767,97411.0,97410.0,0.0014]
[1763099099782,0.78078082,97411.0,97410.0,0.0014]
[1763099100046,0.75343834,97411.0,97410.0,0.0004]
[1763099100608,0.79685708,97411.0,97410.0,0.0004]
[1763099100867,1.48502387,97381.0,97380.0,0.0004]
[1763099101086,1.80820387,97381.0,97380.0,0.0004]
[1763099101331,1.38649787,97381.0,97380.0,0.0004]
[1763099101817,0.92049569,97381.0,97380.0,0.0004]
[1763099102068,0.97735129,97381.0,97380.0,0.0004]
[1763099102889,0.75729747,97381.0,97380.0,0.0004]
[1763099103163,4.56e-05,97381.0,97380.0,0.0004]
[1763099103397,4.56e-05,97381.0,97380.0,0.20578098]
[1763099103630,4.56e-05,97381.0,97380.0,0.20678098]
[1763099103923,4.56e-05,97381.0,97380.0,0.24919972]
[1763099104138,4.56e-05,97381.0,97380.0,0.57419972]
[1763099105135,4.56e-05,97381.0,97380.0,0.24919972]
[1763099105346,4.56e-05,97381.0,97380.0,0.25019972]
[1763099105541,4.56e-05,97381.0,97380.0,0.04481874]
[1763099105742,4.56e-05,97381.0,97380.0,0.04381874]
[1763099106159,4.56e-05,97381.0,97380.0,0.04681874]
[1763099106396,4.56e-05,97381.0,97380.0,0.04981874]
[1763099106599,4.56e-05,97381.0,97380.0,0.04681874]
[1763099106978,4.56e-05,97381.0,97380.0,0.04981874]
[1763099108387,4.56e-05,97381.0,97380.0,0.36981874]
[1763099108630,4.56e-05,97381.0,97380.0,0.38981874]
[1763099109184,4.56e-05,97381.0,97380.0,0.39181874]
[1763099109386,4.56e-05,97381.0,97380.0,0.38881874]
[1763099109764,4.56e-05,97381.0,97380.0,0.53551874]
[1763099109975,4.56e-05,97381.0,97380.0,0.54792595]
[1763099110168,4.56e-05,97381.0,97380.0,0.42169631]
[1763099110354,4.56e-05,97381.0,97380.0,0.05081874]
[1763099110560,4.56e-05,97381.0,97380.0,0.0034]
[1763099110723,0.6131196,97381.0,97380.0,0.0034]
[1763099111404,1.19297406,97361.0,97360.0,0.0004]
[1763099111558,0.20544216,97351.0,97350.0,0.0004]
[1763099112522,1.94178416,97351.0,97350.0,0.0004]
[1763099112651,1.94178416,97351.0,97350.0,0.00085755]
[1763099113259,1.94178416,97351.0,97350.0,0.00185755]
[1763099113703,1.94178416,97351.0,97350.0,0.00085755]
[1763099113899,1.94178416,97351.0,97350.0,0.00185755]
[1763099115372,1.9607373,97351.0,97350.0,0.00185755]
[1763099115891,1.97305816,97351.0,97350.0,0.00185755]
[1763099116126,0.98303316,97351.0,97350.0,0.00185755]
[1763099116318,0.050264,97351.0,97350.0,0.00185755]
[1763099116537,0.20542117,97361.0,97350.0,0.07967755]
[1763099116755,0.55025019,97360.0,97350.0,0.07967755]
[1763099116967,0.02183295,97359.0,97356.0,0.20543028]
[1763099117182,0.02729119,97383.0,97360.0,0.05228]
[1763099117477,0.05026251,97376.0,97365.0,0.05228]
[1763099117708,0.20539041,97376.0,97363.0,0.20541623]
[1763099117901,0.20539041,97376.0,97375.0,0.03941]
[1763099118336,0.2054084,97367.0,97358.0,0.07782]
[1763099118553,0.20540546,97369.0,97358.0,0.07782]
[1763099118765,0.20537676,97382.0,97372.0,0.05228]
[1763099118994,0.2053746,97384.0,97378.0,0.03941]
[1763099119214,0.20535145,97394.0,97381.0,0.05228]
[1763099119433,0.2053584,97391.0,97381.0,0.05228]
[1763099119658,0.5,97390.0,97381.0,0.05228]
[1763099119848,0.5,97390.0,97378.0,0.24479411]
[1763099119849,0.20534851,97396.0,97393.0,0.05228]
[1763099119987,0.03755707,97410.0,97400.0,0.03941]
[1763099120193,0.52842422,97409.0,97402.0,0.05228]
[1763099120399,0.05026249,97408.0,97402.0,0.05273755]
[1763099120612,0.03514,97415.0,97402.0,0.05273755]
[1763099120613,0.02842422,97407.0,97405.0,0.20532752]
[1763099120829,0.02842422,97407.0,97403.0,0.07782]
[1763099120830,0.2053065,97416.0,97414.0,0.03941]
[1763099121029,0.591997,97414.0,97404.0,0.03941]
[1763099121253,0.137022,97424.0,97404.0,0.03941]
[1763099121467,0.55179742,97430.0,97404.0,0.03941]
[1763099121468,0.20530849,97415.0,97405.0,0.07782]
[1763099121677,0.20531221,97413.0,97405.0,0.07782]
[1763099121886,0.20530176,97418.0,97405.0,0.07782]
[1763099122096,0.20532515,97407.0,97404.0,0.03941]
[1763099122312,0.20532515,97407.0,97404.0,0.04041]
[1763099122527,0.323,97417.0,97405.0,0.1784626]
[1763099122966,0.01026272,97440.0,97405.0,0.1784626]
[1763099122967,0.20532652,97406.0,97405.0,0.001]
[1763099123227,0.20532826,97405.0,97402.0,0.00045755]
[1763099123539,0.25728248,97403.0,97402.0,0.00045755]
[1763099123693,1.00420648,97403.0,97402.0,0.00045755]
[1763099124100,0.91502248,97403.0,97402.0,0.00045755]
[1763099124686,0.67961048,97403.0,97402.0,0.00045755]
[1763099124933,0.52833248,97403.0,97402.0,0.00045755]
[1763099125143,0.47613,97403.0,97402.0,0.00045755]